fUSD/lending_fUSD_20240702
["ID","MTS","AMOUNT","RATE_DAILY","PERIOD"]
[330895925,1719927049368,-500.0,0.00022465,4]
[330895926,1719927049378,-356.44926811,0.00022465,4]
[330895927,1719927049389,-503.53890534,0.00022465,4]
[330895928,1719927049398,-409.21935224,0.00022465,4]
[330895929,1719927049407,-500.0,0.00022465,4]
[330895930,1719927049416,-500.0,0.00022465,4]
[330895931,1719927049426,-500.0,0.00022465,4]
[330895932,1719927049436,-500.0,0.00022465,4]
[330895933,1719927049445,-469.95282272,0.00022465,4]
[330895934,1719927049453,-500.0,0.00022465,4]
[330895935,1719927049462,-356.43,0.00022465,4]
[330895936,1719927049472,-500.0,0.00022465,4]
[330895937,1719927049481,-309.48,0.00022465,4]
[330895938,1719927049490,-581.21,0.00022465,4]
[330895939,1719927049499,-500.0,0.00022465,4]
[330895940,1719927049508,-500.0,0.00022465,4]
[330895941,1719927049517,-500.0,0.00022465,4]
[330895942,1719927049527,-500.0,0.00022465,4]
[330895943,1719927049536,-562.03,0.00022465,4]
[330895944,1719927049545,-500.0,0.00022465,4]
[330895945,1719927049554,-500.0,0.00022465,4]
[330895946,1719927049563,-500.0,0.00022465,4]
[330895947,1719927049571,-500.0,0.00022465,4]
[330895948,1719927049581,-500.0,0.00022465,4]
[330895949,1719927049593,-500.0,0.00022465,4]
[330895950,1719927049605,-500.0,0.00022465,4]
[330895951,1719927049615,-500.0,0.00022465,4]
[330895952,1719927049624,-500.0,0.00022465,4]
[330895953,1719927049635,-518.62177626,0.00022465,4]
[330895954,1719927049644,-575.76365521,0.00022465,4]
[330895955,1719927049654,-500.0,0.00022465,4]
[330895956,1719927049663,-208.6,0.00022465,4]
[330895957,1719927049673,-500.0,0.00022465,4]
[330895958,1719927049681,-500.0,0.00022465,4]
[330895959,1719927049691,-500.0,0.00022465,4]
[330895960,1719927049700,-505.45326242,0.00022465,4]
[330895961,1719927049709,-623.42,0.00022465,4]
[330895962,1719927049718,-501.20496059,0.00022465,4]
[330895963,1719927049727,-500.0,0.00022465,4]
[330895964,1719927049741,-500.0,0.00022465,4]
[330895965,1719927049751,-150.56,0.00022465,4]
[330895966,1719927049761,-500.0,0.00022465,4]
[330895967,1719927049771,-503.09531804,0.00022465,4]
[330895968,1719927049780,-500.0,0.00022465,4]
[330895969,1719927049790,-505.89269776,0.00022465,4]
[330895970,1719927049799,-500.0,0.00022465,4]
[330895971,1719927049808,-500.0,0.00022465,4]
[330895972,1719927049817,-500.0,0.00022465,4]
[330895973,1719927049826,-500.0,0.00022465,4]
[330895974,1719927049835,-370.90629589,0.00022465,4]
[330895975,1719927049844,-500.0,0.00022465,4]
[330895976,1719927049853,-500.0,0.00022465,4]
[330895977,1719927049863,-500.0,0.00022465,4]
[330895978,1719927049872,-205.07,0.00022465,4]
[330895979,1719927049882,-243.14,0.00022465,4]
[330895980,1719927049895,-500.0,0.00022465,4]
[330895981,1719927049906,-412.51,0.00022465,4]
[330895982,1719927049915,-500.0,0.00022465,4]
[330895983,1719927049924,-406.08945966,0.00022465,4]
[330895984,1719927049933,-490.41,0.00022465,4]
[330895985,1719927049942,-505.43640487,0.00022465,4]
[330895986,1719927049951,-500.0,0.00022465,4]
[330895987,1719927049960,-500.0,0.00022465,4]
[330895988,1719927049968,-413.66,0.00022465,4]
[330895989,1719927049977,-527.09,0.00022465,4]
[330895990,1719927049986,-527.09,0.00022465,4]
[330895991,1719927049995,-527.09,0.00022465,4]
[330895992,1719927050004,-527.09,0.00022465,4]
[330895993,1719927050013,-503.19046383,0.00022465,4]
[330895994,1719927050023,-527.09,0.00022465,4]
[330895995,1719927050032,-527.09,0.00022465,4]
[330895996,1719927050042,-527.09,0.00022465,4]
[330895997,1719927050051,-527.09,0.00022465,4]
[330895998,1719927050060,-500.0,0.00022465,4]
[330895999,1719927050069,-505.59962881,0.00022465,4]
[330896000,1719927050078,-527.09,0.00022465,4]
[330896001,1719927050087,-503.94268988,0.00022465,4]
[330896002,1719927050096,-527.09,0.00022465,4]
[330896003,1719927050105,-527.09,0.00022465,4]
[330896004,1719927050114,-527.09,0.00022465,4]
[330896005,1719927050123,-527.09,0.00022465,4]
[330896006,1719927050133,-527.09,0.00022465,4]
[330896007,1719927050144,-527.09,0.00022465,4]
[330896008,1719927050154,-527.09,0.00022465,4]
[330896009,1719927050163,-378.57399438,0.00022465,4]
[330896010,1719927050172,-527.09,0.00022465,4]
[330896011,1719927050181,-169.83,0.00022465,4]
[330896012,1719927050191,-505.58230716,0.00022465,4]
[330896013,1719927050200,-527.09,0.00022465,4]
[330896014,1719927050209,-527.09,0.00022465,4]
[330896015,1719927050218,-500.0,0.00022465,4]
[330896016,1719927050227,-527.09,0.00022465,4]
[330896017,1719927050237,-527.09,0.00022465,4]
[330896018,1719927050246,-500.0,0.00022465,4]
[330896019,1719927050255,-527.09,0.00022465,4]
[330896020,1719927050264,-500.0,0.00022465,4]
[330896021,1719927050273,-527.09,0.00022465,4]
[330896022,1719927050282,-488.41,0.00022465,4]
[330896023,1719927050292,-527.18918451,0.00022465,4]
[330896024,1719927050302,-303.65629632,0.00022465,4]
[330896025,1719927050311,-500.0,0.00022465,4]
[330896026,1719927050320,-500.0,0.00022465,4]
[330896027,1719927050329,-320.15,0.00022465,4]
[330896028,1719927050338,-413.24,0.00022465,4]
[330896029,1719927050347,-500.0,0.00022465,4]
[330896030,1719927050356,-500.0,0.00022465,4]
[330896031,1719927050365,-344.45,0.00022465,4]
[330896032,1719927050375,-500.0,0.00022465,4]
[330896033,1719927050384,-502.31614808,0.00022465,4]
[330896034,1719927050398,-321.35803843,0.00022465,4]
[330896035,1719927050410,-500.0,0.00022465,4]
[330896036,1719927050420,-513.89,0.00022465,4]
[330896037,1719927050429,-386.43,0.00022465,4]
[330896038,1719927050438,-500.0,0.00022465,4]
[330896039,1719927050448,-586.2004462,0.00022465,4]
[330896040,1719927050458,-500.0,0.00022465,4]
[330896041,1719927050467,-500.0,0.00022465,4]
[330896042,1719927050477,-500.0,0.00022465,4]
[330896043,1719927050486,-500.0,0.00022465,4]
[330896044,1719927050496,-500.0,0.00022465,4]
[330896045,1719927050505,-500.0,0.00022465,4]
[330896046,1719927050514,-500.0,0.00022465,4]
[330896047,1719927050523,-477.07,0.00022465,4]
[330896048,1719927050533,-613.95,0.00022465,4]
[330896049,1719927050543,-517.87625992,0.00022465,4]
[330896050,1719927050553,-500.0,0.00022465,4]
[330896051,1719927050562,-500.0,0.00022465,4]
[330896052,1719927050571,-500.0,0.00022465,4]
[330896053,1719927050581,-503.9,0.00022465,4]
[330896054,1719927050591,-588.99500053,0.00022465,4]
[330896055,1719927050605,-504.05515857,0.00022465,4]
[330896056,1719927050615,-24131.0,0.00022465,4]
[330896057,1719927050624,-24131.0,0.00022465,4]
[330896058,1719927050638,-24131.0,0.00022465,4]
[330896059,1719927050647,-24131.0,0.00022465,4]
[330896060,1719927050656,-24131.0,0.00022465,4]
[330896061,1719927050665,-198.88,0.00022465,4]
[330896062,1719927050675,-24131.0,0.00022465,4]
[330896063,1719927050686,-24131.0,0.00022465,4]
[330896064,1719927050695,-499.46951415,0.00022465,4]
[330896065,1719927050704,-24131.0,0.00022465,4]
[330896066,1719927050713,-24131.0,0.00022465,4]
[330896067,1719927050723,-24131.0,0.00022465,4]
[330896068,1719927050732,-500.0,0.00022465,4]
[330896069,1719927050741,-500.0,0.00022465,4]
[330896070,1719927050751,-24131.0,0.00022465,4]
[330896071,1719927050760,-301.04,0.00022465,4]
[330896072,1719927050769,-326.73,0.00022465,4]
[330896073,1719927050779,-501.34391529,0.00022465,4]
[330896074,1719927050788,-500.0,0.00022465,4]
[330896075,1719927050797,-500.0,0.00022465,4]
[330896076,1719927050806,-387.27,0.00022465,4]
[330896077,1719927050815,-503.70720423,0.00022465,4]
[330896078,1719927050824,-561.6,0.00022465,4]
[330896079,1719927050834,-501.35739564,0.00022465,4]
[330896080,1719927050843,-500.0,0.00022465,4]
[330896081,1719927050852,-253.06,0.00022465,4]
[330896082,1719927050862,-501.5904371,0.00022465,4]
[330896083,1719927050871,-500.0,0.00022465,4]
[330896084,1719927050880,-500.0,0.00022465,4]
[330896085,1719927050889,-500.0,0.00022465,4]
[330896086,1719927050898,-500.0,0.00022465,4]
[330896087,1719927050908,-503.94729479,0.00022465,4]
[330896088,1719927050917,-500.0,0.00022465,4]
[330896089,1719927050926,-500.0,0.00022465,4]
[330896090,1719927050935,-500.0,0.00022465,4]
[330896091,1719927050945,-500.0,0.00022465,4]
[330896092,1719927050954,-500.6505386,0.00022465,4]
[330896093,1719927050964,-500.0,0.00022465,4]
[330896094,1719927050973,-500.0,0.00022465,4]
[330896095,1719927050983,-500.0,0.00022465,4]
[330896096,1719927050992,-216.97,0.00022465,4]
[330896097,1719927051001,-500.0,0.00022465,4]
[330896098,1719927051010,-269.54,0.00022465,4]
[330896099,1719927051020,-944.2,0.00022465,4]
[330896100,1719927051029,-944.2,0.00022465,4]
[330896101,1719927051038,-944.2,0.00022465,4]
[330896102,1719927051047,-944.2,0.00022465,4]
[330896103,1719927051056,-944.2,0.00022465,4]
[330896104,1719927051065,-944.2,0.00022465,4]
[330896105,1719927051075,-944.2,0.00022465,4]
[330896106,1719927051084,-944.2,0.00022465,4]
[330896107,1719927051093,-944.2,0.00022465,4]
[330896108,1719927051103,-944.2,0.00022465,4]
[330896109,1719927051112,-944.2,0.00022465,4]
[330896110,1719927051121,-944.2,0.00022465,4]
[330896111,1719927051130,-501.70784716,0.00022465,4]
[330896112,1719927051141,-944.2,0.00022465,4]
[330896113,1719927051151,-944.2,0.00022465,4]
[330896114,1719927051160,-944.2,0.00022465,4]
[330896115,1719927051169,-500.0,0.00022465,4]
[330896116,1719927051178,-944.2,0.00022465,4]
[330896117,1719927051187,-944.2,0.00022465,4]
[330896118,1719927051196,-944.2,0.00022465,4]
[330896119,1719927051206,-944.2,0.00022465,4]
[330896120,1719927051215,-500.0,0.00022465,4]
[330896121,1719927051224,-944.2,0.00022465,4]
[330896122,1719927051233,-375.42,0.00022465,4]
[330896123,1719927051242,-501.6130493,0.00022465,4]
[330896124,1719927051251,-944.2,0.00022465,4]
[330896125,1719927051260,-944.2,0.00022465,4]
[330896126,1719927051270,-944.2,0.00022465,4]
[330896127,1719927051279,-504.04863203,0.00022465,4]
[330896128,1719927051288,-944.3407284,0.00022465,4]
[330896129,1719927051298,-502.46486958,0.00022465,4]
[330896130,1719927051308,-500.0,0.00022465,2]
[330896131,1719927051317,-521.61704176,0.00022465,4]
[330896132,1719927051326,-502.92740201,0.00022465,4]
[330896133,1719927051335,-507.18086092,0.00022465,4]
[330896134,1719927051344,-500.0,0.00022465,4]
[330896135,1719927051353,-500.0,0.00022465,4]
[330896136,1719927051362,-500.0,0.00022465,4]
[330896137,1719927051371,-500.0,0.00022465,4]
[330896138,1719927051380,-500.0,0.00022465,4]
[330896139,1719927051391,-586.45,0.00022465,4]
[330896140,1719927051400,-231.53,0.00022465,4]
[330896141,1719927051409,-500.0,0.00022465,4]
[330896142,1719927051419,-156.09,0.00022465,4]
[330896143,1719927051428,-501.95780694,0.00022465,4]
[330896144,1719927051437,-642.60882718,0.00022465,4]
[330896145,1719927051447,-500.0,0.00022465,4]
[330896146,1719927051456,-273.71,0.00022465,4]
[330896147,1719927051465,-250.55869489,0.00022465,4]
[330896148,1719927051474,-502.08446874,0.00022465,4]
[330896149,1719927051484,-503.94017993,0.00022465,4]
[330896150,1719927051493,-541.34827955,0.00022465,4]
[330896151,1719927051503,-500.0,0.00022465,4]
[330896152,1719927051511,-578.18894049,0.00022465,4]
[330896153,1719927051521,-323.43,0.00022465,4]
[330896154,1719927051530,-502.55087138,0.00022465,4]
[330896155,1719927051540,-500.0,0.00022465,4]
[330896156,1719927051549,-500.0,0.00022465,4]
[330896157,1719927051558,-406.23634047,0.00022465,4]
[330896158,1719927051567,-470.49,0.00022465,4]
[330896159,1719927051575,-500.0,0.00022465,4]
[330896160,1719927051584,-597.21,0.00022465,4]
[330896161,1719927051595,-500.0,0.00022465,4]
[330896162,1719927051606,-504.16327393,0.00022465,4]
[330896163,1719927051616,-535.02053592,0.00022465,4]
[330896164,1719927051625,-549.48,0.00022465,4]
[330896165,1719927051636,-500.0,0.00022465,4]
[330896166,1719927051645,-500.0,0.00022465,4]
[330896167,1719927051654,-500.0,0.00022465,4]
[330896168,1719927051663,-616.6,0.00022465,4]
[330896169,1719927051672,-500.0,0.00022465,4]
[330896170,1719927051683,-500.0,0.00022465,4]
[330896171,1719927051692,-337.32,0.00022465,4]
[330896172,1719927051701,-500.0,0.00022465,4]
[330896173,1719927051710,-500.0,0.00022465,4]
[330896174,1719927051719,-500.0,0.00022465,4]
[330896175,1719927051729,-500.0,0.00022465,4]
[330896176,1719927051738,-500.0,0.00022465,4]
[330896177,1719927051747,-500.0,0.00022465,4]
[330896178,1719927051757,-503.05415196,0.00022465,4]
[330896179,1719927051767,-546.04,0.00022465,4]
[330896180,1719927051776,-500.0,0.00022465,4]
[330896181,1719927051785,-495.87139579,0.00022465,4]
[330896182,1719927051794,-526.7303523,0.00022465,4]
[330896183,1719927051803,-500.0,0.00022465,4]
[330896184,1719927051812,-340.29,0.00022465,4]
[330896185,1719927051821,-500.0,0.00022465,4]
[330896186,1719927051830,-259.76,0.00022465,4]
[330896187,1719927051839,-500.0,0.00022465,2]
[330896188,1719927051849,-500.0,0.00022465,4]
[330896189,1719927051858,-500.0,0.00022465,4]
[330896190,1719927051867,-504.62432671,0.00022465,4]
[330896191,1719927051877,-500.0,0.00022465,4]
[330896192,1719927051888,-482.78,0.00022465,4]
[330896193,1719927051897,-500.0,0.00022465,4]
[330896194,1719927051906,-500.0,0.00022465,4]
[330896195,1719927051917,-500.0,0.00022465,4]
[330896196,1719927051926,-605.45,0.00022465,4]
[330896197,1719927051935,-339.86,0.00022465,4]
[330896198,1719927051945,-503.0520455,0.00022465,4]
[330896199,1719927051955,-500.0,0.00022465,4]
[330896200,1719927051965,-580.97,0.00022465,4]
[330896201,1719927051974,-500.0,0.00022465,4]
[330896202,1719927051983,-500.0,0.00022465,4]
[330896203,1719927051992,-500.0,0.00022465,4]
[330896204,1719927052002,-500.0,0.00022465,4]
[330896205,1719927052012,-500.0,0.00022465,4]
[330896206,1719927052022,-500.0,0.00022465,4]
[330896207,1719927052032,-500.0,0.00022465,4]
[330896208,1719927052041,-500.0,0.00022465,4]
[330896209,1719927052051,-625.93,0.00022465,4]
[330896210,1719927052060,-500.0,0.00022465,4]
[330896211,1719927052069,-500.0,0.00022465,4]
[330896212,1719927052079,-618.19987347,0.00022465,4]
[330896213,1719927052089,-500.0,0.00022465,4]
[330896214,1719927052099,-500.0,0.00022465,4]
[330896215,1719927052109,-502.58538254,0.00022465,4]
[330896216,1719927052118,-500.0,0.00022465,4]
[330896217,1719927052127,-352.33,0.00022465,4]
[330896218,1719927052137,-502.09630587,0.00022465,4]
[330896219,1719927052146,-500.73289735,0.00022465,4]
[330896220,1719927052154,-500.0,0.00022465,4]
[330896221,1719927052163,-502.24992843,0.00022465,4]
[330896222,1719927052173,-500.0,0.00022465,4]
[330896223,1719927052182,-500.0,0.00022465,4]
[330896224,1719927052343,-507.34365532,0.00022465,4]
[330896225,1719927052352,-500.0,0.00022465,4]
[330896226,1719927052362,-500.0,0.00022465,4]
[330896227,1719927052371,-316.83,0.00022465,4]
[330896228,1719927052381,-501.77296353,0.00022465,4]
[330896229,1719927052391,-500.0,0.00022465,4]
[330896230,1719927052401,-503.38432871,0.00022465,4]
[330896231,1719927052410,-500.0,0.00022465,2]
[330896232,1719927052420,-552.6567875,0.00022465,2]
[330896233,1719927052429,-500.0,0.00022465,4]
[330896234,1719927052439,-500.0,0.00022465,4]
[330896235,1719927052448,-502.19398481,0.00022465,4]
[330896236,1719927052457,-501.36284253,0.00022465,4]
[330896237,1719927052467,-615.91,0.00022465,4]
[330896238,1719927052476,-500.0,0.00022465,4]
[330896239,1719927052485,-517.17,0.00022465,4]
[330896240,1719927052494,-500.0,0.00022465,4]
[330896241,1719927052503,-500.0,0.00022465,4]
[330896242,1719927052513,-500.0,0.00022465,4]
[330896243,1719927052521,-500.0,0.00022465,4]
[330896244,1719927052531,-503.44139187,0.00022465,4]
[330896245,1719927052541,-500.0,0.00022465,4]
[330896246,1719927052550,-502.6185538,0.00022465,4]
[330896247,1719927052560,-516.63,0.00022465,4]
[330896248,1719927052569,-500.0,0.00022465,4]
[330896249,1719927052579,-243.72,0.00022465,4]
[330896250,1719927052588,-500.77763477,0.00022465,4]
[330896251,1719927052604,-500.0,0.00022465,4]
[330896252,1719927052614,-500.0,0.00022465,4]
[330896253,1719927052623,-500.0,0.00022465,4]
[330896254,1719927052634,-240.92637775,0.00022465,4]
[330896255,1719927052645,-503.89056799,0.00022465,4]
[330896256,1719927052654,-500.0,0.00022465,4]
[330896257,1719927052664,-500.0,0.00022465,4]
[330896258,1719927052673,-500.0,0.00022465,4]
[330896259,1719927052684,-500.0,0.00022465,4]
[330896260,1719927052694,-572.94,0.00022465,4]
[330896261,1719927052703,-500.0,0.00022465,4]
[330896262,1719927052712,-364.38,0.00022465,4]
[330896263,1719927052722,-506.52695638,0.00022465,4]
[330896264,1719927052731,-501.50667294,0.00022465,4]
[330896265,1719927052742,-292.67,0.00022465,4]
[330896266,1719927052750,-500.0,0.00022465,4]
[330896267,1719927052760,-295.69,0.00022465,4]
[330896268,1719927052770,-500.0,0.00022465,4]
[330896269,1719927052779,-641.01579373,0.00022465,4]
[330896270,1719927052788,-500.0,0.00022465,4]
[330896271,1719927052799,-627.8,0.00022465,4]
[330896272,1719927052808,-500.0,0.00022465,2]
[330896273,1719927052818,-500.0,0.00022465,2]
[330896274,1719927052828,-500.0,0.00022465,2]
[330896275,1719927052838,-500.0,0.00022465,2]
[330896276,1719927052848,-500.39520428,0.00022465,2]
[330896277,1719927052858,-500.0,0.00022465,4]
[330896278,1719927052867,-500.0,0.00022465,4]
[330896279,1719927052876,-500.0,0.00022465,4]
[330896280,1719927052886,-341.5,0.00022465,4]
[330896281,1719927052898,-500.0,0.00022465,4]
[330896282,1719927052907,-500.0,0.00022465,4]
[330896283,1719927052916,-500.0,0.00022465,4]
[330896284,1719927052929,-500.0,0.00022465,4]
[330896285,1719927052938,-559.71,0.00022465,4]
[330896286,1719927052947,-239.83,0.00022465,4]
[330896287,1719927052957,-500.0,0.00022465,4]
[330896288,1719927052966,-500.0,0.00022465,4]
[330896289,1719927052975,-500.0,0.00022465,4]
[330896290,1719927052985,-500.0,0.00022465,4]
[330896291,1719927052995,-500.0,0.00022465,4]
[330896292,1719927053004,-503.15781934,0.00022465,4]
[330896293,1719927053013,-500.0,0.00022465,4]
[330896294,1719927053023,-500.0,0.00022465,4]
[330896295,1719927053033,-500.0,0.00022465,4]
[330896296,1719927053042,-500.0,0.00022465,4]
[330896297,1719927053053,-500.0,0.00022465,4]
[330896298,1719927053062,-500.0,0.00022465,4]
[330896299,1719927053073,-500.0,0.00022465,4]
[330896300,1719927053084,-500.0,0.00022465,4]
[330896301,1719927053095,-500.0,0.00022465,4]
[330896302,1719927053105,-562.56,0.00022465,4]
[330896303,1719927053115,-500.0,0.00022465,4]
[330896304,1719927053125,-500.0,0.00022465,4]
[330896305,1719927053134,-592.0715965,0.00022465,4]
[330896306,1719927053146,-471.45,0.00022465,4]
[330896307,1719927053155,-500.0,0.00022465,4]
[330896308,1719927053164,-500.0,0.00022465,4]
[330896309,1719927053172,-500.0,0.00022465,4]
[330896310,1719927053181,-500.0,0.00022465,4]
[330896311,1719927053191,-183.16,0.00022465,4]
[330896312,1719927053202,-500.0,0.00022465,4]
[330896313,1719927053212,-239.79864937,0.00022465,4]
[330896314,1719927053221,-503.13740249,0.00022465,4]
[330896315,1719927053230,-500.0,0.00022465,4]
[330896316,1719927053240,-500.0,0.00022465,4]
[330896317,1719927053251,-500.0,0.00022465,4]
[330896318,1719927053260,-500.0,0.00022465,4]
[330896319,1719927053268,-500.0,0.00022465,4]
[330896320,1719927053277,-263.08,0.00022465,4]
[330896321,1719927053286,-500.0,0.00022465,4]
[330896322,1719927053295,-541.84,0.00022465,4]
[330896323,1719927053304,-161.99,0.00022465,4]
[330896324,1719927053313,-509.12261576,0.00022465,4]
[330896325,1719927053323,-500.0,0.00022465,4]
[330896326,1719927053332,-500.0,0.00022465,4]
[330896327,1719927053341,-345.63682136,0.00022465,4]
[330896328,1719927053351,-500.0,0.00022465,4]
[330896329,1719927053360,-500.0,0.00022465,4]
[330896330,1719927053369,-567.42207124,0.00022465,4]
[330896331,1719927053378,-500.0,0.00022465,4]
[330896332,1719927053387,-622.88,0.00022465,4]
[330896333,1719927053397,-500.0,0.00022465,4]
[330896334,1719927053406,-500.0,0.00022465,4]
[330896335,1719927053416,-500.0,0.00022465,4]
[330896336,1719927053425,-500.0,0.00022465,4]
[330896337,1719927053434,-500.0,0.00022465,4]
[330896338,1719927053443,-500.0,0.00022465,4]
[330896339,1719927053452,-500.0,0.00022465,4]
[330896340,1719927053462,-500.0,0.00022465,4]
[330896341,1719927053471,-500.0,0.00022465,4]
[330896342,1719927053480,-500.0,0.00022465,4]
[330896343,1719927053489,-500.0,0.00022465,4]
[330896344,1719927053499,-4051.83,0.00022465,4]
[330896345,1719927053508,-500.0,0.00022465,4]
[330896346,1719927053518,-500.0,0.00022465,4]
[330896347,1719927053528,-508.19762577,0.00022465,4]
[330896348,1719927053537,-429.32,0.00022465,4]
[330896349,1719927053547,-500.0,0.00022465,4]
[330896350,1719927053556,-4051.83,0.00022465,4]
[330896351,1719927053566,-500.0,0.00022465,4]
[330896352,1719927053575,-500.0,0.00022465,4]
[330896353,1719927053585,-580.75,0.00022465,4]
[330896354,1719927053597,-304.98,0.00022465,4]
[330896355,1719927053607,-4051.83,0.00022465,4]
[330896356,1719927053617,-500.96475879,0.00022465,4]
[330896357,1719927053626,-4051.83,0.00022465,4]
[330896358,1719927053636,-500.0,0.00022465,4]
[330896359,1719927053647,-197.64,0.00022465,4]
[330896360,1719927053657,-503.21918503,0.00022465,4]
[330896361,1719927053666,-4051.83,0.00022465,4]
[330896362,1719927053676,-500.0,0.00022465,4]
[330896363,1719927053686,-4051.83,0.00022465,4]
[330896364,1719927053695,-500.0,0.00022465,4]
[330896365,1719927053704,-500.0,0.00022465,4]
[330896366,1719927053713,-500.0,0.00022465,4]
[330896367,1719927053722,-4051.83,0.00022465,4]
[330896368,1719927053732,-500.0,0.00022465,4]
[330896369,1719927053741,-500.0,0.00022465,4]
[330896370,1719927053750,-4051.83,0.00022465,4]
[330896371,1719927053760,-500.0,0.00022465,4]
[330896372,1719927053769,-538.34917404,0.00022465,3]
[330896373,1719927053779,-350.2,0.00022465,4]
[330896374,1719927053788,-4051.83,0.00022465,4]
[330896375,1719927053796,-500.0,0.00022465,4]
[330896376,1719927053806,-4051.83,0.00022465,4]
[330896377,1719927053815,-500.0,0.00022465,4]
[330896378,1719927053824,-500.0,0.00022465,4]
[330896379,1719927053833,-500.0,0.00022465,4]
[330896380,1719927053842,-4051.83,0.00022465,4]
[330896381,1719927053851,-500.0,0.00022465,4]
[330896382,1719927053860,-500.0,0.00022465,4]
[330896383,1719927053870,-471.85,0.00022465,4]
[330896384,1719927053879,-502.38571923,0.00022465,4]
[330896385,1719927053888,-500.0,0.00022465,4]
[330896386,1719927053897,-4051.83,0.00022465,4]
[330896387,1719927053906,-500.0,0.00022465,4]
[330896388,1719927053916,-500.0,0.00022465,4]
[330896389,1719927053925,-4051.83,0.00022465,4]
[330896390,1719927053934,-217.26,0.00022465,4]
[330896391,1719927053944,-4051.83,0.00022465,4]
[330896392,1719927053954,-4051.83,0.00022465,4]
[330896393,1719927053963,-500.0,0.00022465,4]
[330896394,1719927053972,-4051.83,0.00022465,4]
[330896395,1719927053981,-500.0,0.00022465,4]
[330896396,1719927053990,-500.0,0.00022465,4]
[330896397,1719927053999,-4051.83,0.00022465,4]
[330896398,1719927054008,-500.0,0.00022465,4]
[330896399,1719927054017,-501.69473864,0.00022465,4]
[330896400,1719927054026,-500.0,0.00022465,4]
[330896401,1719927054035,-4051.83,0.00022465,4]
[330896402,1719927054045,-500.0,0.00022465,4]
[330896403,1719927054054,-500.0,0.00022465,4]
[330896404,1719927054063,-647.95,0.00022465,4]
[330896405,1719927054072,-4051.83,0.00022465,4]
[330896406,1719927054082,-4051.83,0.00022465,4]
[330896407,1719927054091,-500.0,0.00022465,4]
[330896408,1719927054100,-503.73845336,0.00022465,4]
[330896409,1719927054109,-500.0,0.00022465,4]
[330896410,1719927054118,-4051.83,0.00022465,4]
[330896411,1719927054128,-500.0,0.00022465,4]
[330896412,1719927054137,-500.0,0.00022465,4]
[330896413,1719927054148,-500.0,0.00022465,4]
[330896414,1719927054157,-253.1,0.00022465,4]
[330896415,1719927054166,-4051.83,0.00022465,4]
[330896416,1719927054175,-4051.83,0.00022465,4]
[330896417,1719927054184,-4052.03800238,0.00022465,4]
[330896418,1719927054193,-527.61949228,0.00022465,4]
[330896419,1719927054203,-500.0,0.00022465,4]
[330896420,1719927054213,-500.0,0.00022465,4]
[330896421,1719927054222,-500.0,0.00022465,4]
[330896422,1719927054232,-500.0,0.00022465,4]
[330896423,1719927054241,-500.0,0.00022465,4]
[330896424,1719927054251,-500.0,0.00022465,4]